bitfinex/quotes_SOLUSD_20251208
["timestamp","ask_amount","ask_price","bid_price","bid_amount"]
[1765227806114,0.2,134.18,134.17,40.86108727]
[1765227807631,0.2,134.18,134.17,32.7378563]
[1765227808116,0.92,134.18,134.15,13.62200294]
[1765227808943,0.92,134.18,134.15,14.29200294]
[1765227810144,0.2,134.18,134.16,6.16769106]
[1765227811253,16.98994492,134.2,134.19,17.99776885]
[1765227811423,16.308864,134.22,134.18,6.16769106]
[1765227811622,8.18,134.22,134.19,6.16769106]
[1765227812142,8.18,134.22,134.19,6.83769106]
[1765227813228,15.63060455,134.22,134.19,6.83769106]
[1765227816360,16.30060455,134.22,134.19,6.16769106]
[1765227816658,15.63060455,134.22,134.18,6.16769106]
[1765227816956,0.67,134.21,134.18,6.16769106]
[1765227817452,7.45060455,134.22,134.18,172.46769106]
[1765227817637,16.28060455,134.22,134.18,173.13769106]
[1765227817956,6.16769106,134.2,134.18,166.3]
[1765227818161,23.13763598,134.19,134.18,62.1]
[1765227818368,8.80994492,134.18,134.15,62.1]
[1765227818526,8.80994492,134.15,134.12,62.1]
[1765227818850,6.16769106,134.13,134.12,62.1]
[1765227819042,6.16769106,134.14,134.12,62.1]
[1765227819951,8.16,134.15,134.12,70.22600279]
[1765227820257,15.61323097,134.17,134.13,0.67]
[1765227820558,6.16769106,134.14,134.12,62.1]
[1765227820847,7.45472973,134.15,134.12,62.1]
[1765227821049,13.62242079,134.15,134.12,62.1]
[1765227821429,0.67,134.14,134.12,62.1]
[1765227821921,14.29242079,134.15,134.12,62.1]
[1765227822540,8.12472973,134.15,134.12,62.1]
[1765227822751,14.29242079,134.15,134.12,62.1]
[1765227823352,13.62242079,134.15,134.12,62.1]
[1765227823731,7.45472973,134.15,134.12,62.77]
[1765227823933,13.62242079,134.15,134.12,62.77]
[1765227824336,13.62242079,134.15,134.12,62.1]
[1765227824648,23.82763598,134.14,134.12,62.1]
[1765227825241,23.15763598,134.14,134.12,62.1]
[1765227826753,30.61308004,134.14,134.12,62.1]
[1765227828042,31.28308004,134.14,134.12,62.1]
[1765227828948,24.44538898,134.14,134.12,62.1]
[1765227829147,14.97763598,134.13,134.12,62.1]
[1765227830337,15.64763598,134.13,134.12,56.50223367]
[1765227830539,8.80994492,134.12,134.07,160.70223367]
[1765227830743,8.80994492,134.12,134.07,56.50223367]
[1765227830744,11.40419768,134.1,134.07,56.50223367]
[1765227830951,7.45767767,134.09,134.07,56.50223367]
[1765227833357,7.45767767,134.09,134.07,57.19223367]
[1765227833554,6.17717473,134.1,134.07,56.50223367]
[1765227833743,8.80994492,134.13,134.09,6.17717473]
[1765227833944,8.80994492,134.13,134.09,166.8794084]
[1765227834160,15.65711965,134.13,134.09,161.39223367]
[1765227834557,8.80994492,134.13,134.1,0.69]
[1765227835369,7.45600954,134.12,134.1,0.69]
[1765227835569,8.80994492,134.13,134.1,57.19223367]
[1765227835858,8.80994492,134.13,134.1,64.64918897]
[1765227836048,8.80994492,134.13,134.11,0.69]
[1765227836640,16.26552662,134.13,134.11,0.69]
[1765227837149,16.26552662,134.13,134.1,56.50223367]
[1765227837337,16.26552662,134.13,134.1,57.19223367]
[1765227837758,16.26552662,134.13,134.11,0.69]
[1765227837953,8.80994492,134.13,134.11,0.69]
[1765227839051,34.94535793,134.15,134.12,6.17717473]
[1765227839052,7.45449893,134.15,134.12,6.17717473]
[1765227839248,7.45449893,134.15,134.13,0.69]
[1765227839249,8.80994492,134.14,134.13,0.69]
[1765227839545,8.80994492,134.15,134.13,0.69]
[1765227839747,6.17717473,134.2,134.16,56.50223367]
[1765227839951,14.35717473,134.2,134.16,56.50223367]
[1765227840173,8.80994492,134.19,134.16,57.21223367]
[1765227840548,8.80994492,134.19,134.16,56.50223367]
[1765227840858,14.98711965,134.17,134.16,56.50223367]
[1765227841367,23.11035062,134.17,134.16,56.50223367]
[1765227841565,22.44035062,134.17,134.16,56.50223367]
[1765227842763,16.93317589,134.17,134.16,56.50223367]
[1765227843286,22.44035062,134.17,134.16,56.50223367]
[1765227843770,23.11035062,134.17,134.16,56.50223367]
[1765227843973,22.44035062,134.17,134.16,56.50223367]
[1765227844902,23.11035062,134.17,134.16,56.50223367]
[1765227845086,8.80994492,134.13,134.12,14.9508714]
[1765227845409,23.16711965,134.13,134.12,14.9508714]
[1765227845683,31.29257331,134.13,134.12,14.9508714]
[1765227846470,25.11539858,134.13,134.12,14.9508714]
[1765227846701,31.29257331,134.13,134.12,14.9508714]
[1765227847892,31.29257331,134.13,134.06,104.91]
[1765227847893,87.20847579,134.13,134.06,104.91]
[1765227848065,8.80994492,134.09,134.07,0.71]
[1765227848268,15.02717473,134.09,134.07,53.29005508]
[1765227848490,8.18,134.09,134.08,0.71]
[1765227849168,8.18,134.11,134.08,0.71]
[1765227849373,6.17717473,134.1,134.08,0.71]
[1765227849793,7.45767767,134.09,134.08,0.71]
[1765227850172,22.44479732,134.09,134.07,53.29005508]
[1765227850380,30.62479732,134.09,134.07,53.29005508]
[1765227851390,8.80994492,134.08,134.07,53.29005508]
[1765227851891,16.26817881,134.08,134.07,53.29005508]
[1765227852290,22.44535354,134.08,134.07,53.29005508]
[1765227854703,18.86311571,134.08,134.07,53.29005508]
[1765227855699,16.26817881,134.08,134.07,53.29005508]
[1765227858677,20.32287229,134.08,134.07,53.29005508]
[1765227864104,93.23849046,134.08,134.03,10.50822553]
[1765227864403,8.80994492,134.05,134.03,0.71]
[1765227864599,16.98994492,134.05,134.04,0.71]
[1765227865198,63.39498806,134.08,134.04,66.86469348]
[1765227865408,71.57498806,134.08,134.04,66.86469348]
[1765227865587,71.57498806,134.08,134.05,0.71]
[1765227865984,75.62968154,134.08,134.05,0.71]
[1765227866690,12.8646384,134.07,134.04,62.1]
[1765227866894,4.05469348,134.06,134.04,62.81]
[1765227867091,8.18,134.06,134.05,0.71]
[1765227867287,71.57498806,134.08,134.05,0.71]
[1765227869800,34.28381861,134.08,134.05,0.71]
[1765227870388,34.28381861,134.08,134.05,4.76469348]
[1765227870588,34.28381861,134.08,134.06,0.71]
[1765227874216,34.28381861,134.08,134.05,62.1]
[1765227874395,34.28381861,134.08,134.05,62.81]
[1765227875013,38.33851209,134.08,134.05,62.81]
[1765227875595,12.8646384,134.07,134.05,62.1]
[1765227875798,8.18,134.06,134.05,62.81]
[1765227876102,8.80994492,134.07,134.05,62.1]
[1765227876312,7.45934656,134.06,134.05,62.1]
[1765227876519,7.45934656,134.06,134.05,62.81]
[1765227883297,7.45934656,134.06,134.05,66.86469348]
[1765227883498,7.45934656,134.06,134.05,62.81]
[1765227883724,7.45879018,134.07,134.05,66.86469348]
[1765227883935,7.45879018,134.07,134.06,0.71]
[1765227888520,7.45879018,134.07,134.06,62.81]
[1765227889136,7.45879018,134.07,134.06,66.86469348]
[1765227889331,116.33573199,134.12,134.08,27.8156251]
[1765227889332,16.98994492,134.1,134.08,27.8156251]
[1765227889931,16.98994492,134.1,134.08,28.5256251]
[1765227890526,16.26706647,134.1,134.08,28.5256251]
[1765227890926,16.26706647,134.1,134.09,0.71]
[1765227891142,16.26706647,134.1,134.08,28.5256251]
[1765227891735,16.26706647,134.1,134.09,0.66]
[1765227891914,16.26706647,134.1,134.08,28.4756251]
[1765227892455,7.45712155,134.1,134.09,4.71469348]
[1765227892637,26.09462043,134.13,134.09,4.71469348]
[1765227892843,26.09462043,134.13,134.11,4.05469348]
[1765227893216,26.09462043,134.13,134.12,0.66]
[1765227894820,8.80994492,134.12,134.09,0.66]
[1765227895140,12.8646384,134.12,134.09,0.66]
[1765227895335,13.5346384,134.12,134.09,0.66]
[1765227895635,8.80994492,134.1,134.08,8.18]
[1765227895841,8.80994492,134.1,134.08,8.84]
[1765227897135,4.05469348,134.11,134.08,8.84]
[1765227897136,7.45767767,134.09,134.08,8.84]
[1765227898051,7.45767767,134.09,134.08,8.18]
[1765227898222,8.80994492,134.1,134.08,8.18]
[1765227898618,8.80994492,134.1,134.08,8.84]
[1765227898850,8.80994492,134.1,134.09,0.66]
[1765227899019,8.80994492,134.1,134.08,8.84]
[1765227899449,7.45767767,134.09,134.08,8.18]
[1765227899824,7.45767767,134.09,134.08,8.84]
[1765227900329,7.45736675,134.1,134.08,40.71031858]
[1765227900633,7.45736675,134.1,134.09,0.66]
[1765227901548,23.36745592,134.11,134.09,27.8156251]
[1765227901716,19.31276244,134.11,134.09,27.8156251]
[1765227901922,18.64276244,134.11,134.09,27.8156251]
[1765227902233,8.80994492,134.1,134.09,27.8156251]
[1765227902437,13.5346384,134.1,134.05,4.73469348]
[1765227902639,4.05469348,134.09,134.06,0.68]
[1765227903122,4.05469348,134.09,134.04,0.68]
[1765227903123,4.72469348,134.08,134.04,0.68]
[1765227903323,7.45934656,134.06,134.04,0.68]
[1765227903727,7.45934656,134.06,134.01,0.68]
[1765227903728,21.7146384,134.05,134.01,0.68]
[1765227903927,12.8646384,134.03,134.0,0.1]
[1765227904134,12.8646384,134.03,134.0,0.78]
[1765227904451,8.80994492,134.03,134.0,0.78]
[1765227905022,8.80994492,134.03,134.0,4.83469348]
[1765227905217,8.80994492,134.03,134.01,0.68]
[1765227905646,7.46157289,134.02,134.01,0.68]
[1765227906055,7.46157289,134.02,134.01,4.73469348]
[1765227906236,8.18,134.05,134.01,4.73469348]
[1765227906440,7.45990302,134.05,134.02,4.73469348]
[1765227906830,7.45990302,134.05,134.03,0.68]
[1765227907025,7.45990302,134.05,134.03,4.73469348]
[1765227907469,7.45990302,134.05,134.04,0.68]
[1765227909458,7.45990302,134.05,134.04,62.78]
[1765227912764,20.32454142,134.05,134.04,62.1]
[1765227913447,16.26984794,134.05,134.04,62.1]
[1765227914878,7.45990302,134.05,134.04,62.1]
[1765227915037,16.26842041,134.08,134.04,66.83469348]
[1765227915243,18.64345811,134.1,134.07,4.05469348]
[1765227915473,7.4565655,134.11,134.08,4.05469348]
[1765227915642,26.09797926,134.11,134.08,0.68]
[1765227915858,26.09797926,134.11,134.09,0.68]
[1765227916376,26.09797926,134.11,134.07,8.18]
[1765227916377,8.80994492,134.1,134.07,8.86]
[1765227916956,9.47994492,134.1,134.07,8.18]
[1765227917174,8.80994492,134.1,134.07,8.86]
[1765227917365,8.80994492,134.1,134.08,0.68]
[1765227917548,7.45767767,134.09,134.08,0.68]
[1765227918545,7.45767767,134.09,134.06,4.05469348]
[1765227918750,7.45767767,134.09,134.07,0.68]
[1765227919570,26.10187186,134.09,134.07,0.68]
[1765227919963,7.45767767,134.09,134.07,0.68]
[1765227920146,7.45767767,134.09,134.07,3.27410426]
[1765227920563,7.45735597,134.1,134.08,3.27410426]
[1765227920963,7.45735597,134.1,134.09,0.68]
[1765227921167,7.45735597,134.1,134.09,62.78]
[1765227921563,7.4565655,134.11,134.09,62.78]
[1765227922075,7.4565655,134.11,134.09,65.37410426]
[1765227922384,7.4565655,134.11,134.1,0.68]
[1765227922550,7.4565655,134.11,134.1,62.78]
[1765227922874,15.63617938,134.12,134.1,62.78]
[1765227923574,15.63617938,134.12,134.1,62.1]
[1765227923773,15.63617938,134.12,134.1,62.78]
[1765227923981,7.45617938,134.12,134.1,62.78]
[1765227924388,7.45617938,134.12,134.11,0.68]
[1765227924890,32.57394671,134.14,134.12,62.1]
[1765227925051,8.80994492,134.18,134.13,2.59410426]
[1765227925249,26.08242044,134.19,134.16,2.59410426]
[1765227925448,26.08242044,134.19,134.14,8.86]
[1765227925672,83.85,134.21,134.17,2.59410426]
[1765227925673,7.45170809,134.2,134.17,2.59410426]
[1765227925874,26.07868318,134.21,134.17,2.59410426]
[1765227926080,8.80994492,134.2,134.18,0.68]
[1765227926259,7.45100961,134.21,134.18,0.68]
[1765227926465,7.45100961,134.21,134.18,3.27410426]
[1765227926858,7.65059249,134.22,134.19,3.27410426]
[1765227927052,0.2,134.22,134.2,2.59410426]
[1765227927258,0.2,134.22,134.21,2.59410426]
[1765227927477,0.2,134.22,134.21,3.27410426]
[1765227927972,0.2,134.22,134.21,0.68]
[1765227928170,0.2,134.22,134.21,10.72511387]
[1765227928378,0.2,134.22,134.21,72.82511387]
[1765227928561,0.2,134.23,134.21,72.82511387]
[1765227928562,0.2,134.23,134.21,10.72511387]
[1765227928754,0.2,134.24,134.22,0.68]
[1765227928954,0.2,134.24,134.23,10.77410426]
[1765227929355,0.2,134.24,134.23,11.45410426]
[1765227929881,0.2,134.24,134.23,18.90400368]
[1765227930577,0.2,134.24,134.23,16.30989942]
[1765227930776,0.2,134.24,134.23,22.4675694]
[1765227931277,0.2,134.24,134.21,6.15766998]
[1765227931452,0.2,134.24,134.22,8.84]
[1765227931857,13.80708683,134.24,134.2,8.84]
[1765227932054,13.80708683,134.24,134.21,0.68]
[1765227932510,0.2,134.24,134.22,6.15766998]
[1765227932865,0.2,134.24,134.23,0.68]
[1765227933656,0.2,134.24,134.23,8.84]
[1765227933862,0.2,134.24,134.23,14.99766998]
[1765227935557,0.2,134.24,134.23,8.84]
[1765227935764,14.49701443,134.24,134.22,62.1]
[1765227935973,6.15766998,134.23,134.22,62.1]
[1765227936481,7.45045447,134.22,134.2,70.26]
[1765227936680,13.60812445,134.22,134.2,70.26]
[1765227938282,7.45045447,134.22,134.2,70.94]
[1765227938671,7.45045447,134.22,134.2,70.26]
[1765227938874,13.60778307,134.23,134.2,70.94]
[1765227939874,7.45011309,134.23,134.2,70.94]
[1765227940073,7.64944259,134.24,134.21,0.68]
[1765227940374,13.80711257,134.24,134.21,0.68]
[1765227940981,14.49711257,134.24,134.21,0.68]
[1765227941168,13.80711257,134.24,134.21,0.68]
[1765227941488,0.2,134.24,134.21,6.83766998]
[1765227941986,7.44890298,134.25,134.24,61.9]
[1765227942289,0.2,134.27,134.24,61.9]
[1765227942498,0.2,134.27,134.25,6.83766998]
[1765227942679,0.2,134.27,134.26,8.16]
[1765227942873,0.2,134.27,134.26,8.84]
[1765227943095,0.2,134.27,134.26,8.16]
[1765227943394,0.2,134.27,134.26,8.84]
[1765227943799,23.30529494,134.27,134.21,61.9]
[1765227944001,8.80994492,134.26,134.19,0.68]
[1765227944177,6.15766998,134.23,134.2,8.16]
[1765227944586,8.80994492,134.24,134.2,8.84]
[1765227944890,6.15766998,134.23,134.2,8.16]
[1765227945100,14.9676149,134.21,134.14,7.4544067]
[1765227945274,13.60954383,134.2,134.16,0.68]
[1765227945475,14.9676149,134.19,134.15,8.16]
[1765227945708,91.308864,134.23,134.16,0.68]
[1765227945709,7.45045447,134.22,134.16,0.68]
[1765227945884,7.45045447,134.22,134.17,6.15766998]
[1765227945885,13.60812445,134.22,134.17,6.15766998]
[1765227946085,13.60812445,134.22,134.18,8.16]
[1765227946405,14.9676149,134.23,134.18,8.84]
[1765227946613,8.80994492,134.23,134.19,0.68]
[1765227946782,7.44950118,134.24,134.19,6.83766998]
[1765227947110,13.60717116,134.24,134.19,6.83766998]
[1765227947416,13.60717116,134.24,134.2,0.68]
[1765227949202,7.44950118,134.24,134.2,0.68]
[1765227949400,13.60717116,134.24,134.2,0.68]
[1765227949609,6.15766998,134.23,134.2,0.68]
[1765227950580,6.15766998,134.23,134.2,166.98]
[1765227950782,13.60717116,134.24,134.21,0.68]
[1765227952892,13.60717116,134.24,134.21,0.71]
[1765227953398,27.50130747,134.26,134.21,0.71]
[1765227953399,14.9676149,134.26,134.21,70.97]
[1765227953591,8.80994492,134.26,134.21,77.12766998]
[1765227953792,8.80994492,134.26,134.22,0.71]
[1765227954402,23.13586282,134.26,134.22,0.71]
[1765227954599,23.13586282,134.26,134.22,167.01]
[1765227954600,22.41586282,134.26,134.22,167.01]
[1765227954904,16.25819284,134.26,134.22,167.01]
[1765227955077,22.41586282,134.26,134.23,0.71]
[1765227955282,22.41586282,134.26,134.23,62.81]
[1765227955502,0.2,134.27,134.24,8.16]
[1765227955701,0.2,134.27,134.24,175.17]
[1765227955893,0.2,134.27,134.25,0.71]
[1765227957101,13.80535851,134.27,134.24,174.46]
[1765227957287,7.64768853,134.27,134.25,0.71]
[1765227957796,7.64768853,134.27,134.24,175.17]
[1765227958908,13.80535851,134.27,134.24,175.17]
[1765227959114,8.80994492,134.24,134.21,62.81]
[1765227959313,6.15766998,134.22,134.21,62.1]
[1765227959804,15.6876149,134.22,134.21,62.1]
[1765227960616,6.15766998,134.22,134.21,62.1]
[1765227960918,14.31812445,134.22,134.21,62.1]
[1765227961212,8.16045447,134.22,134.21,62.1]
[1765227961593,14.31812445,134.22,134.21,62.1]
[1765227962541,23.12806937,134.22,134.21,62.1]
[1765227962886,31.28806937,134.22,134.21,62.1]
[1765227963388,8.80994492,134.21,134.16,8.16]
[1765227963611,8.80994492,134.21,134.09,18.64403043]
[1765227963612,6.15766998,134.17,134.13,8.85]
[1765227963813,6.15766998,134.15,134.13,8.85]
[1765227964315,6.15766998,134.16,134.14,0.69]
[1765227964519,8.80994492,134.18,134.14,0.69]
[1765227964693,14.9676149,134.18,134.14,0.69]
[1765227965489,22.4204935,134.18,134.14,0.69]
[1765227966735,6.15766998,134.17,134.14,0.69]
[1765227967805,13.61090963,134.17,134.14,0.69]
[1765227968735,13.61090963,134.17,134.14,62.79]
[1765227969229,22.42051117,134.18,134.14,62.79]
[1765227969401,22.42051117,134.18,134.15,0.69]
[1765227969917,6.15766998,134.21,134.16,8.16]
[1765227970111,6.15766998,134.21,134.17,0.69]
[1765227970309,14.9676149,134.22,134.17,0.69]
[1765227970624,16.26039939,134.22,134.17,68.94766998]
[1765227970828,6.86766998,134.21,134.17,62.79]
[1765227971028,6.15766998,134.2,134.17,62.79]
[1765227971204,13.60932453,134.2,134.17,62.79]
[1765227971407,6.15766998,134.2,134.18,0.69]
[1765227971813,13.6088775,134.21,134.18,0.69]
[1765227972020,16.26060542,134.22,134.18,0.69]
[1765227972206,8.80994492,134.22,134.18,0.69]
[1765227972424,7.45021167,134.23,134.19,8.16]
[1765227972622,7.45021167,134.23,134.19,70.26]
[1765227972822,7.45021167,134.23,134.2,0.69]
[1765227973210,7.45021167,134.23,134.19,26.2040097]
[1765227973527,0.71,134.22,134.19,34.3640097]
[1765227973820,8.16021167,134.23,134.19,34.3640097]
[1765227974022,14.31788165,134.23,134.19,34.3640097]
[1765227974411,6.15766998,134.21,134.19,26.2040097]
[1765227974604,15.6776149,134.22,134.19,26.2040097]
[1765227975024,8.1593505,134.24,134.19,192.5040097]
[1765227975325,16.96929542,134.24,134.2,0.69]
[1765227975520,8.80994492,134.26,134.21,6.15766998]
[1765227975727,16.25839977,134.26,134.21,68.25766998]
[1765227975913,16.25839977,134.26,134.22,0.69]
[1765227976312,16.96839977,134.26,134.22,0.69]
[1765227977310,16.96839977,134.26,134.22,6.84766998]
[1765227977511,0.2,134.27,134.22,180.59800886]
[1765227977706,0.2,134.27,134.24,6.15766998]
[1765227977929,0.2,134.27,134.24,68.25766998]
[1765227978127,0.2,134.27,134.25,0.69]
[1765227978527,8.35780663,134.27,134.24,62.1]
[1765227979822,8.35780663,134.27,134.24,62.79]
[1765227980009,8.35780663,134.27,134.24,62.1]
[1765227980217,19.17204222,134.26,134.24,62.1]
[1765227981133,8.80994492,134.24,134.21,62.1]
[1765227981311,9.6520973,134.23,134.21,62.1]
[1765227981507,19.16204222,134.24,134.21,62.1]
[1765227981713,8.80994492,134.24,134.22,0.72]
[1765227982120,16.25882456,134.25,134.22,0.72]
[1765227982318,7.44887964,134.25,134.22,0.72]
[1765227984635,17.80097694,134.25,134.21,62.1]
[1765227984828,8.14887964,134.25,134.21,62.82]
[1765227985070,7.44887964,134.25,134.22,0.72]
[1765227985917,8.14887964,134.25,134.22,0.72]
[1765227986425,7.44887964,134.25,134.22,62.82]
[1765227988040,10.3520973,134.24,134.22,62.1]
[1765227988517,0.7,134.23,134.22,62.1]
[1765227988841,10.3520973,134.24,134.22,62.1]
[1765227989223,25.11974447,134.24,134.22,62.1]
[1765227989428,34.77184177,134.24,134.22,62.1]
[1765227989644,18.81970459,134.27,134.22,166.3]
[1765227989837,0.2,134.27,134.26,9.6520973]
[1765227990037,0.2,134.29,134.26,79.9120973]
[1765227990350,0.2,134.32,134.28,9.6520973]
[1765227990549,0.2,134.36,134.31,25.9609613]
[1765227990735,0.2,134.36,134.29,16.96994492]
[1765227990736,0.2,134.36,134.34,9.6520973]
[1765227990932,0.2,134.36,134.34,17.8120973]
[1765227991144,0.2,134.36,134.34,18.3520973]
[1765227992649,0.2,134.36,134.34,25.79589661]
[1765227995741,8.80994492,134.43,134.38,24.37667728]
[1765227996850,34.84636665,134.43,134.38,24.37667728]
[1765227997561,34.84636665,134.43,134.38,10.3720973]
[1765227997562,35.54636665,134.43,134.38,10.3720973]
[1765227997760,34.84636665,134.43,134.39,9.6520973]
[1765227997932,35.54636665,134.43,134.39,9.6520973]
[1765227998259,0.91731009,134.48,134.42,25.9609613]
[1765227998555,0.91731009,134.48,134.44,9.6520973]
[1765227998556,7.65336006,134.48,134.44,9.6520973]
[1765227999061,0.21731009,134.48,134.46,9.6520973]
[1765227999535,7.65336329,134.48,134.45,10.3720973]
[1765228000959,40.90194654,134.46,134.44,8.16]
[1765228001144,40.90194654,134.46,134.45,9.6520973]
[1765228001339,40.90194654,134.46,134.45,10.3720973]
[1765228002459,40.90194654,134.46,134.44,8.16]
[1765228002646,40.90194654,134.46,134.44,18.5320973]
[1765228003360,40.90194654,134.46,134.45,9.6520973]
[1765228003662,9.6520917,134.46,134.45,9.6520973]
[1765228004545,9.6520917,134.46,134.45,10.3720973]
[1765228005258,9.6520917,134.46,134.45,17.80980648]
[1765228005443,8.9320917,134.46,134.45,17.80980648]
[1765228006152,8.93209465,134.5,134.47,16.308864]
[1765228006346,8.93209465,134.5,134.49,9.6520973]
[1765228006936,8.93209465,134.5,134.48,25.9609613]
[1765228007162,17.06734809,134.5,134.45,32.53667728]
[1765228007364,17.06734809,134.5,134.46,9.6520973]
[1765228007554,0.7,134.49,134.45,17.8120973]
[1765228007753,29.56731009,134.48,134.44,34.1209613]
[1765228007934,29.56731009,134.48,134.45,9.6520973]
[1765228008139,30.26731009,134.48,134.45,9.6520973]
[1765228008967,29.58543685,134.49,134.46,9.6520973]
[1765228009142,0.21714989,134.54,134.47,8.68]
[1765228009459,9.72709481,134.54,134.5,9.6520973]
[1765228009648,8.93209465,134.53,134.48,17.8120973]
[1765228009844,9.84758064,134.53,134.48,17.8120973]
[1765228010247,8.13422584,134.52,134.48,17.8120973]
[1765228010652,0.7,134.51,134.48,8.16]
[1765228010849,7.43422584,134.52,134.48,9.6520973]
[1765228011053,7.6884756,134.52,134.49,7.1e-06]
[1765228011261,8.93209465,134.53,134.5,9.6520973]
[1765228011475,8.93209465,134.53,134.51,9.6520973]
[1765228011659,8.93209465,134.53,134.52,9.6520973]
[1765228011968,8.93209465,134.53,134.51,9.6520973]
[1765228012339,17.02548767,134.53,134.5,9.6520973]
[1765228012570,8.93209465,134.53,134.5,9.6520973]
[1765228012746,8.93209465,134.53,134.51,9.6520973]
[1765228013261,8.80994492,134.51,134.42,0.74393691]
[1765228013437,9.6520973,134.47,134.39,0.52]
[1765228013640,26.62204222,134.46,134.39,10.1720973]
[1765228013863,26.62204222,134.46,134.39,26.4809613]
[1765228014041,0.66,134.45,134.39,26.4809613]
[1765228014453,7.43826242,134.44,134.39,26.4809613]
[1765228014746,7.43791692,134.45,134.41,9.6520973]
[1765228014955,8.09791692,134.45,134.4,10.1720973]
[1765228015147,0.66,134.44,134.4,10.1720973]
[1765228015670,8.93209465,134.43,134.4,9.6520973]
[1765228015855,8.93209465,134.43,134.39,9.6520973]
[1765228016053,0.66,134.42,134.38,10.1720973]
[1765228016369,0.66,134.42,134.37,17.8120973]
[1765228016552,7.43992262,134.41,134.37,17.8120973]
[1765228016866,24.53093551,134.43,134.39,9.6520973]
[1765228017057,24.53093551,134.43,134.38,0.52]
[1765228017058,8.93209465,134.43,134.4,9.6520973]
[1765228018674,8.93209465,134.43,134.4,34.02877458]
[1765228019466,8.93209465,134.43,134.4,9.6520973]
[1765228019766,8.93209465,134.43,134.41,9.6520973]
[1765228020570,8.93209465,134.43,134.42,10.1720973]
[1765228020869,8.93209465,134.43,134.42,26.4809613]
[1765228021073,8.93209465,134.43,134.42,25.9609613]
[1765228022276,8.93209465,134.43,134.41,17.7920973]
[1765228022469,8.93209465,134.43,134.42,9.6520973]
[1765228024669,8.93209465,134.43,134.41,17.7920973]
[1765228024970,8.93209465,134.43,134.4,8.14]
[1765228024971,16.37109694,134.43,134.4,8.14]
[1765228025177,0.7,134.42,134.4,8.14]
[1765228025682,0.7,134.42,134.4,24.37667728]
[1765228026345,37.05571064,134.46,134.4,24.37667728]
[1765228026551,0.7,134.45,134.41,9.6520973]
[1765228026751,8.80994492,134.44,134.4,128.57667728]
[1765228027272,0.7,134.43,134.4,128.57667728]
[1765228027451,26.73027399,134.46,134.41,9.6520973]
[1765228027646,26.73027399,134.46,134.41,42.16877458]
[1765228027851,0.7,134.45,134.41,42.16877458]
[1765228028087,8.93209465,134.43,134.41,42.16877458]
[1765228028465,8.93209465,134.43,134.41,32.51667728]
[1765228028857,9.63209465,134.43,134.41,32.51667728]
[1765228029176,8.93209465,134.43,134.41,32.51667728]
[1765228030273,8.93209465,134.43,134.41,32.46845247]
[1765228030472,16.37091248,134.43,134.41,32.46845247]
[1765228030780,0.7,134.42,134.41,32.46845247]
[1765228030986,0.7,134.42,134.41,24.32845247]
[1765228031352,19.16204222,134.42,134.41,24.32845247]
[1765228031550,8.80994492,134.41,134.36,24.32845247]
[1765228031785,27.32204222,134.41,134.36,24.32845247]
[1765228031978,27.32204222,134.41,134.34,17.8120973]
[1765228031979,8.80994492,134.39,134.34,32.48845247]
[1765228032470,0.7,134.38,134.34,32.48845247]
[1765228032673,8.14210763,134.38,134.34,32.48845247]
[1765228033053,0.7,134.37,134.34,32.48845247]
[1765228033985,0.7,134.37,134.34,42.14054977]
[1765228034162,8.93209465,134.36,134.34,42.14054977]
[1765228034365,8.93209465,134.36,134.35,10.1720973]
[1765228034569,8.93209465,134.36,134.35,17.61534255]
[1765228034764,8.93209465,134.36,134.34,25.0728324]
[1765228034988,8.93209465,134.36,134.1,9.6520973]
[1765228034989,75.0,134.21,134.1,9.6520973]
[1765228035156,10.6395529,134.13,134.08,0.67]
[1765228035359,9.6520973,134.13,134.08,0.67]
[1765228035594,0.9874556,134.13,134.08,10.3220973]
[1765228035903,16.96994492,134.17,134.11,9.6520973]
[1765228035904,0.9874556,134.16,134.11,9.6520973]
[1765228036065,0.9874556,134.16,134.13,0.67]
[1765228036491,0.9874556,134.17,134.13,10.3220973]